bitfinex/quotes_SOLUSD_20260108
["timestamp","ask_amount","ask_price","bid_price","bid_amount"]
[1767871273247,8.15469536,134.42,134.38,0.6887867]
[1767871273754,0.37975899,134.41,134.37,7.66505052]
[1767871273936,0.71197054,134.4,134.35,0.6887867]
[1767871274125,0.71197054,134.4,134.35,7.66505052]
[1767871274328,26.75878398,134.41,134.35,7.66505052]
[1767871274632,26.75878398,134.41,134.37,6.97626382]
[1767871274633,0.37636942,134.4,134.37,6.97626382]
[1767871274835,8.15441356,134.43,134.39,7.66505052]
[1767871275028,7.43908734,134.43,134.39,7.66505052]
[1767871275236,14.41535116,134.43,134.39,0.6887867]
[1767871275424,0.37975899,134.42,134.38,6.97626382]
[1767871276151,7.43992262,134.41,134.38,6.97626382]
[1767871276847,7.81939788,134.42,134.38,6.97626382]
[1767871277644,7.43901048,134.43,134.4,6.97626382]
[1767871278242,47.30946749,134.44,134.39,7.66505052]
[1767871278552,0.37636942,134.43,134.39,7.66505052]
[1767871278748,0.37636942,134.43,134.39,0.6887867]
[1767871278932,0.37636942,134.43,134.39,7.66505052]
[1767871279253,46.59071747,134.44,134.39,7.66505052]
[1767871279748,39.61445365,134.44,134.39,7.66505052]
[1767871279966,39.99082307,134.44,134.39,7.66505052]
[1767871280244,39.99082307,134.44,134.4,0.6887867]
[1767871280245,7.43826242,134.44,134.4,0.6887867]
[1767871280438,7.43826242,134.44,134.4,7.66505052]
[1767871280835,0.37975899,134.43,134.38,0.6887867]
[1767871281048,0.71197054,134.42,134.39,6.97626382]
[1767871281252,13.58,134.42,134.35,0.6887867]
[1767871281447,13.58,134.42,134.37,6.97626382]
[1767871281644,0.71875002,134.41,134.37,6.97626382]
[1767871281829,0.71532622,134.39,134.33,21.71297974]
[1767871282034,0.71532622,134.39,134.35,6.97626382]
[1767871282339,8.15675033,134.39,134.36,6.97626382]
[1767871282954,0.71532622,134.39,134.36,6.97626382]
[1767871283253,8.15641473,134.39,134.36,6.97626382]
[1767871283853,0.71532622,134.39,134.36,6.97626382]
[1767871284041,7.44061056,134.4,134.36,7.66505052]
[1767871285826,43.8714228,134.44,134.36,7.44250519]
[1767871285827,0.71875002,134.43,134.36,7.44250519]
[1767871286032,0.71875002,134.42,134.38,6.97626382]
[1767871286362,0.71875002,134.42,134.37,6.97626382]
[1767871286363,0.71875002,134.41,134.37,6.97626382]
[1767871286730,0.71875002,134.41,134.36,6.97626382]
[1767871287356,0.71875002,134.45,134.4,6.97626382]
[1767871287540,8.15648896,134.45,134.38,7.44158356]
[1767871287739,0.71875002,134.45,134.42,6.97626382]
[1767871287948,14.29875002,134.47,134.43,6.97626382]
[1767871288156,14.29875002,134.47,134.38,26.04554248]
[1767871288340,14.29875002,134.47,134.43,6.97626382]
[1767871288541,14.29875002,134.47,134.43,11.31519843]
[1767871288856,21.73555916,134.47,134.43,11.31519843]
[1767871289232,0.71875002,134.46,134.43,11.31519843]
[1767871289555,0.71875002,134.46,134.41,7.43952895]
[1767871289752,0.71875002,134.46,134.43,11.31519843]
[1767871290354,8.15604274,134.46,134.39,26.04284535]
[1767871290546,8.15604274,134.46,134.43,11.31519843]
[1767871291856,8.15604274,134.46,134.39,26.04284535]
[1767871292044,8.15604274,134.46,134.43,11.31519843]
[1767871292850,8.15604274,134.46,134.4,7.44017083]
[1767871293049,8.15604274,134.46,134.43,11.31519843]
[1767871293251,0.69083041,134.45,134.38,13.58]
[1767871293451,0.69083041,134.45,134.41,11.31519843]
[1767871293843,0.69083041,134.45,134.41,10.59019843]
[1767871294043,0.69083041,134.44,134.41,10.59019843]
[1767871294439,0.69083041,134.44,134.4,0.69863827]
[1767871294749,0.69083041,134.44,134.41,11.31519843]
[1767871296057,26.03253331,134.45,134.38,21.02136323]
[1767871296058,0.69083041,134.42,134.4,11.31519843]
[1767871296239,0.69083041,134.42,134.38,13.58]
[1767871296240,0.69083041,134.42,134.38,11.31519843]
[1767871297156,0.69083041,134.41,134.37,12.0138367]
[1767871297540,0.69083041,134.41,134.37,11.31519843]
[1767871297760,0.69083041,134.4,134.36,11.31519843]
[1767871298277,8.13161033,134.4,134.36,11.31519843]
[1767871299259,0.69083041,134.4,134.38,11.31519843]
[1767871299441,8.12964615,134.43,134.39,11.31519843]
[1767871299840,8.12964615,134.43,134.4,11.31519843]
[1767871300343,7.43881574,134.43,134.4,11.31519843]
[1767871300543,7.43881574,134.43,134.4,12.0138367]
[1767871301152,7.43881574,134.43,134.4,0.69863827]
[1767871301562,18.75401417,134.43,134.38,12.0138367]
[1767871301864,0.69083041,134.42,134.39,11.31519843]
[1767871302469,26.03585509,134.43,134.39,11.31519843]
[1767871303161,38.04188393,134.43,134.38,12.0138367]
[1767871303764,38.04188393,134.43,134.38,0.69863827]
[1767871303967,38.04188393,134.43,134.38,12.0138367]
[1767871304165,26.7266855,134.43,134.39,11.31519843]
[1767871304670,26.7266855,134.43,134.39,12.0138367]
[1767871305242,0.69083041,134.42,134.4,11.31519843]
[1767871305671,0.69083041,134.42,134.4,10.59019843]
[1767871305849,0.69083041,134.42,134.38,7.44114751]
[1767871306051,0.69083041,134.42,134.4,11.31519843]
[1767871306665,0.69083041,134.42,134.38,7.44114751]
[1767871306858,0.69083041,134.42,134.4,11.31519843]
[1767871307167,0.69083041,134.42,134.4,11.25519843]
[1767871307370,0.69083041,134.42,134.38,7.44114751]
[1767871307576,0.69083041,134.42,134.4,11.31519843]
[1767871308072,0.69083041,134.42,134.4,11.25519843]
[1767871308765,7.43844596,134.44,134.4,11.9538367]
[1767871309769,21.608628,134.45,134.4,11.9538367]
[1767871309951,7.4375049,134.46,134.43,0.69863827]
[1767871310155,7.4375049,134.46,134.43,11.9538367]
[1767871310671,21.01674706,134.47,134.44,11.31519843]
[1767871310873,21.01674706,134.47,134.44,11.25519843]
[1767871311070,21.01674706,134.47,134.43,11.31519843]
[1767871311270,7.43674706,134.47,134.43,11.31519843]
[1767871312067,8.08140314,134.48,134.44,12.0138367]
[1767871312268,8.08597021,134.5,134.46,12.0138367]
[1767871312471,18.5868181,134.51,134.47,11.31519843]
[1767871312472,7.434599,134.51,134.47,11.31519843]
[1767871312660,7.434599,134.51,134.47,11.25519843]
[1767871314383,7.434599,134.51,134.47,11.9538367]
[1767871316065,7.43410136,134.52,134.48,12.0138367]
[1767871316774,7.43410136,134.52,134.48,11.9538367]
[1767871318462,7.43410136,134.52,134.48,11.31519843]
[1767871318777,7.43410136,134.52,134.48,12.0138367]
[1767871319461,7.43410136,134.52,134.49,0.69863827]
[1767871320378,0.14216157,134.54,134.51,0.69863827]
[1767871320379,7.43299354,134.54,134.51,0.69863827]
[1767871320686,7.53239009,134.55,134.52,12.0138367]
[1767871320980,7.53230026,134.55,134.52,0.63863827]
[1767871322985,7.53230026,134.55,134.51,11.31519843]
[1767871322986,12.0072098,134.53,134.46,32.17279525]
[1767871323189,12.0072098,134.53,134.48,11.31519843]
[1767871323362,0.69201137,134.51,134.47,11.31519843]
[1767871323682,8.12642734,134.51,134.47,11.31519843]
[1767871324271,8.12642734,134.51,134.46,13.58]
[1767871324569,7.43441597,134.51,134.47,11.31519843]
[1767871324964,7.43441597,134.51,134.48,0.68202303]
[1767871325582,0.70282905,134.53,134.49,11.99722146]
[1767871325787,8.13637603,134.53,134.49,11.99722146]
[1767871326185,7.43354698,134.53,134.49,11.99722146]
[1767871326384,24.89519843,134.54,134.51,0.68202303]
[1767871326385,7.43279259,134.54,134.51,0.68202303]
[1767871326688,19.55043541,134.55,134.51,0.68202303]
[1767871327062,8.23523698,134.55,134.51,11.99722146]
[1767871327266,8.23523698,134.55,134.51,0.68202303]
[1767871328387,7.53240793,134.55,134.52,11.99722146]
[1767871328589,7.53240793,134.55,134.5,11.31519843]
[1767871328590,19.55043541,134.55,134.5,11.31519843]
[1767871330067,8.23523698,134.55,134.51,11.31519843]
[1767871330385,7.53240793,134.55,134.51,11.31519843]
[1767871330572,0.1,134.55,134.51,11.99722146]
[1767871330769,7.53227334,134.55,134.52,11.31519843]
[1767871330967,7.53227334,134.55,134.52,8.79365151]
[1767871331282,7.53227334,134.55,134.51,0.68202303]
[1767871331469,8.23510239,134.55,134.52,11.31519843]
[1767871332274,0.1,134.55,134.54,11.31519843]
[1767871332489,0.1,134.56,134.54,11.90955256]
[1767871332678,7.5296049,134.6,134.56,11.92370673]
[1767871332873,7.5296049,134.6,134.56,11.8037069]
[1767871333076,19.54763238,134.6,134.56,0.48850847]
[1767871333387,19.54763238,134.6,134.55,11.31519843]
[1767871333579,8.23243395,134.6,134.55,11.31519843]
[1767871334870,8.23243395,134.6,134.55,11.8037069]
[1767871335072,8.13286571,134.59,134.55,11.31519843]
[1767871335380,0.70282905,134.58,134.55,11.31519843]
[1767871335992,0.70282905,134.58,134.56,11.31519843]
[1767871336369,0.70282905,134.58,134.55,11.31519843]
[1767871336679,0.70282905,134.58,134.56,11.31519843]
[1767871338474,0.70282905,134.58,134.53,7.43328625]
[1767871338675,0.70282905,134.58,134.56,11.31519843]
[1767871339104,0.60282905,134.57,134.52,0.48850847]
[1767871339273,0.60282905,134.57,134.51,21.6959215]
[1767871339274,0.099,134.56,134.51,21.6959215]
[1767871339481,0.099,134.56,134.52,11.31519843]
[1767871339795,11.31519843,134.57,134.53,0.68202303]
[1767871340096,26.00684995,134.58,134.53,0.68202303]
[1767871340272,11.31519843,134.57,134.53,0.68202303]
[1767871340779,37.32204838,134.58,134.54,0.68202303]
[1767871340981,37.42104838,134.58,134.53,11.31519843]
[1767871341180,37.42104838,134.58,134.53,11.99722146]
[1767871341696,37.42104838,134.58,134.51,13.58]
[1767871341697,0.10398791,134.56,134.51,25.57722146]
[1767871341877,11.41918634,134.56,134.51,25.57722146]
[1767871342077,11.41918634,134.56,134.52,0.68202303]
[1767871342688,11.31519843,134.56,134.52,0.68202303]
[1767871343091,26.609679,134.58,134.52,0.68202303]
[1767871343393,11.31519843,134.56,134.52,0.68202303]
[1767871343692,11.31519843,134.57,134.52,0.68202303]
[1767871343878,11.31519843,134.57,134.53,11.31519843]
[1767871343879,0.59779075,134.57,134.53,11.31519843]
[1767871345200,8.02923386,134.57,134.53,11.31519843]
[1767871346388,0.10398791,134.56,134.53,11.31519843]
[1767871346584,8.0335496,134.58,134.53,0.68202303]
[1767871346780,7.43072055,134.58,134.55,0.68202303]
[1767871346977,7.43010392,134.59,134.55,11.31519843]
[1767871347197,7.43010392,134.59,134.56,11.31519843]
[1767871347198,0.099,134.59,134.56,11.31519843]
[1767871347397,7.52968688,134.6,134.56,11.99722146]
[1767871348884,7.62868688,134.6,134.56,11.99722146]
[1767871349385,18.94388531,134.6,134.56,0.68202303]
[1767871349900,11.31519843,134.59,134.56,0.68202303]
[1767871350100,26.10323814,134.6,134.56,0.68202303]
[1767871350491,6.95307366,134.57,134.52,20.53307366]
[1767871350807,0.59344672,134.58,134.52,13.58]
[1767871350983,6.95307366,134.57,134.52,20.53307366]
[1767871351485,32.96184232,134.57,134.52,20.53307366]
[1767871351787,0.58918914,134.56,134.52,20.53307366]
[1767871353392,8.02094687,134.56,134.52,20.53307366]
[1767871353589,8.02094687,134.56,134.53,6.95307366]
[1767871354403,8.02094687,134.56,134.52,21.18795146]
[1767871354605,8.02094687,134.56,134.52,17.06707774]
[1767871356295,7.43175773,134.56,134.53,0.6548778]
[1767871356901,8.08342239,134.56,134.52,17.06707774]
[1767871357104,8.08342239,134.56,134.52,14.2348778]
[1767871357303,7.43175773,134.56,134.52,17.06707774]
[1767871357609,21.50889184,134.57,134.52,17.06707774]
[1767871357983,0.65719075,134.52,134.47,0.6548778]
[1767871358290,0.65719075,134.52,134.48,3.48707774]
[1767871358510,0.65719075,134.52,134.48,0.6548778]
[1767871358808,0.65719075,134.52,134.48,3.48707774]
[1767871358990,16.41219994,134.53,134.49,0.6548778]
[1767871359604,7.43383883,134.52,134.49,0.6548778]
[1767871359893,10.26603877,134.52,134.49,0.6548778]
[1767871360985,7.43383883,134.52,134.49,0.6548778]
[1767871361607,10.26603877,134.52,134.49,0.6548778]
[1767871362190,23.84603877,134.52,134.49,0.6548778]
[1767871362713,13.58,134.52,134.49,0.6548778]
[1767871363003,21.01386863,134.52,134.49,0.6548778]
[1767871366921,11.405,134.52,134.49,2.83219994]
[1767871367095,7.43366357,134.53,134.48,10.2679892]
[1767871367295,7.43366357,134.53,134.49,2.83219994]
[1767871367490,7.43366357,134.53,134.49,2.89437089]
[1767871368012,0.68772775,134.55,134.5,0.06217095]
[1767871368196,13.58,134.55,134.51,0.06217095]
[1767871368704,13.58,134.55,134.52,0.06217095]
[1767871370691,140.15107445,134.59,134.53,2.89437089]
[1767871370692,0.68772775,134.58,134.53,2.89437089]
[1767871370891,2.83219994,134.57,134.53,0.06217095]
[1767871371121,21.69849335,134.58,134.51,2.83219994]
[1767871371122,0.68772775,134.56,134.51,2.83219994]
[1767871371321,0.68772775,134.56,134.51,2.89437089]
[1767871371618,0.68772775,134.56,134.51,10.32846521]
[1767871372407,0.68772775,134.56,134.52,2.83219994]
[1767871372807,0.68772775,134.56,134.52,10.26598492]
[1767871376105,0.68772775,134.56,134.53,2.83219994]
[1767871378927,0.68772775,134.56,134.52,2.89437089]
[1767871380938,0.68772775,134.56,134.53,2.83219994]
[1767871381820,0.68772775,134.56,134.52,7.49578745]
[1767871382110,0.68772775,134.56,134.52,10.32798739]
[1767871382311,0.68772775,134.56,134.53,2.83219994]
[1767871383730,14.26487418,134.58,134.54,0.06217095]
[1767871383937,13.58,134.58,134.55,2.83219994]
[1767871384129,14.26487418,134.58,134.55,2.83219994]
[1767871384429,21.69542719,134.58,134.54,0.06217095]
[1767871384609,21.69542719,134.58,134.54,2.89437089]
[1767871385117,14.26487418,134.58,134.54,2.89437089]
[1767871385319,14.26487418,134.58,134.54,10.32708597]
[1767871386225,14.26487418,134.58,134.55,2.83219994]
[1767871387439,13.58,134.58,134.56,2.89437089]
[1767871387732,0.78487418,134.6,134.56,2.89437089]
[1767871388311,0.1,134.6,134.57,2.89437089]
[1767871388533,0.1,134.6,134.58,2.83219994]
[1767871388836,0.1,134.6,134.57,2.89437089]
[1767871389129,0.1,134.6,134.58,2.83219994]
[1767871389735,0.1,134.61,134.59,2.83219994]
[1767871390121,0.1,134.61,134.58,10.26258966]
[1767871390638,0.78487418,134.61,134.55,18.57970794]
[1767871390834,0.78487418,134.61,134.57,2.83219994]
[1767871391135,0.78487418,134.61,134.57,7.43098555]
[1767871391317,0.78487418,134.61,134.58,2.83219994]
[1767871391525,14.36487418,134.61,134.58,2.83219994]
[1767871392436,0.68487418,134.6,134.58,10.26255769]
[1767871394021,0.68487418,134.6,134.58,7.43035775]
[1767871394228,0.68487418,134.6,134.58,10.26255769]
[1767871394528,0.68487418,134.6,134.54,26.01456814]
[1767871394733,0.1,134.61,134.58,2.83219994]
[1767871396729,0.1,134.61,134.59,7.4299725]
[1767871396939,0.1,134.61,134.59,8.11484668]
[1767871397630,0.1,134.61,134.59,0.68487418]
[1767871398519,0.78487418,134.61,134.57,0.68487418]
[1767871398737,8.2138345,134.61,134.57,0.68487418]
[1767871399321,0.68487418,134.6,134.55,8.11679891]
[1767871399521,0.68487418,134.59,134.55,10.94899885]
[1767871399737,0.65487419,134.59,134.55,10.94899885]
[1767871400231,2.83219994,134.59,134.55,7.43192473]
[1767871400436,13.58,134.6,134.54,7.43245818]
[1767871400437,2.83219994,134.58,134.54,7.43245818]
[1767871400638,10.26294974,134.58,134.53,8.11948275]
[1767871400938,10.26294974,134.58,134.51,10.95252744]
[1767871400939,2.83219994,134.57,134.51,10.95252744]
[1767871401242,26.00706128,134.58,134.51,10.95252744]
[1767871401432,2.83219994,134.56,134.51,8.1203275]
[1767871401736,0.68487418,134.55,134.51,8.1203275]
[1767871401933,0.68487418,134.55,134.51,7.43395604]
[1767871402341,0.68487418,134.55,134.5,8.12119564]
[1767871402342,0.68487418,134.54,134.5,8.12119564]
[1767871402536,0.68487418,134.54,134.5,10.95339558]
[1767871403042,2.83219994,134.55,134.51,0.68637146]
[1767871403720,21.676922,134.56,134.51,0.68637146]
[1767871404019,24.50912194,134.56,134.51,0.68637146]
[1767871404223,14.24487418,134.56,134.52,3.5185714]
[1767871404635,14.24487418,134.56,134.52,0.68637146]
[1767871405634,17.07707412,134.56,134.52,0.68637146]
[1767871409439,17.07707412,134.56,134.52,8.12016035]
[1767871409637,13.56,134.56,134.53,0.68637146]
[1767871410134,16.39219994,134.56,134.53,0.68637146]
[1767871411341,14.24487418,134.56,134.53,0.68637146]
[1767871411540,0.68487418,134.55,134.52,7.43378889]
[1767871411841,0.68487418,134.55,134.51,8.12049001]
[1767871412039,0.68487418,134.55,134.52,7.43383738]
[1767871412222,3.5554474,134.57,134.53,8.1425208]
[1767871412624,5.14802651,134.57,134.53,8.1425208]
[1767871414334,0.72324746,134.56,134.52,7.43357788]
[1767871414546,0.72324746,134.55,134.52,7.43357788]
[1767871414928,5.14802651,134.56,134.52,8.14298278]
[1767871415635,5.14802651,134.58,134.54,0.7094049]
[1767871415842,13.58,134.57,134.54,8.14202064]
[1767871416228,13.58,134.57,134.54,12.56679969]
[1767871417748,13.58,134.57,134.55,5.13418395]
[1767871417932,12.86512583,134.57,134.55,4.42477905]
[1767871419045,12.86512583,134.57,134.55,11.85667375]
[1767871419531,0.72324746,134.6,134.56,4.42477905]
[1767871420339,0.82324746,134.61,134.57,4.42477905]
[1767871420846,0.82324746,134.61,134.58,4.42477905]
[1767871421044,0.82324746,134.61,134.58,11.85516041]
[1767871421243,0.1,134.61,134.59,4.42477905]
[1767871423152,0.1,134.61,134.57,11.85555832]
[1767871423153,0.82324746,134.61,134.57,11.85555832]
[1767871423334,0.82324746,134.61,134.57,4.42477905]
[1767871423666,0.82324746,134.61,134.57,11.85559756]
[1767871424162,0.82324746,134.61,134.56,7.43146311]
[1767871424462,0.82324746,134.61,134.57,4.42477905]
[1767871426057,8.25213734,134.61,134.57,4.42477905]
[1767871426545,0.72324746,134.6,134.57,4.42477905]
[1767871426752,0.72324746,134.6,134.56,7.43146311]
[1767871426959,0.72324746,134.6,134.57,4.42477905]
[1767871427643,0.72324746,134.59,134.56,4.42477905]
[1767871427954,0.69324746,134.59,134.56,4.42477905]
[1767871428135,0.69324746,134.59,134.55,11.85669442]
[1767871428538,0.69324746,134.59,134.55,4.42477905]
[1767871428751,4.42477905,134.59,134.55,4.42477905]
[1767871429058,4.42477905,134.58,134.53,11.85770256]
[1767871429832,0.72324746,134.57,134.53,11.85770256]
[1767871432557,0.72324746,134.57,134.52,7.43383883]
[1767871432750,0.72324746,134.56,134.52,4.42477905]
[1767871433751,0.72324746,134.55,134.51,4.42477905]
[1767871433946,0.72324746,134.54,134.5,11.85933898]
[1767871434149,0.72324746,134.54,134.51,4.42477905]
[1767871434665,0.72324746,134.54,134.52,4.42477905]
[1767871436757,0.72324746,134.54,134.51,4.42477905]
[1767871437647,0.72324746,134.54,134.5,0.03]
[1767871437853,0.72324746,134.54,134.52,4.42477905]
[1767871438663,0.72324746,134.55,134.52,4.42477905]
[1767871439457,0.72324746,134.57,134.53,4.45477905]
[1767871439658,0.72324746,134.57,134.52,7.46383466]
[1767871439862,0.72324746,134.57,134.53,4.42477905]
[1767871440362,0.72324746,134.54,134.51,21.01404377]
[1767871440542,0.72324746,134.54,134.51,7.43404377]
[1767871440745,0.72324746,134.54,134.5,11.88946373]
[1767871440950,0.72324746,134.54,134.5,4.42477905]
[1767871441265,0.72324746,134.53,134.5,4.42477905]
[1767871441862,0.72324746,134.53,134.5,11.85966834]
[1767871442271,0.72324746,134.53,134.5,4.42477905]
[1767871443564,0.72324746,134.53,134.49,7.46526271]
[1767871443773,0.72324746,134.53,134.49,11.89004176]
[1767871444268,0.72324746,134.53,134.49,7.46526271]
[1767871444568,0.72324746,134.53,134.49,11.86004176]
[1767871444964,0.72324746,134.53,134.49,7.43526271]
[1767871445172,0.72324746,134.53,134.49,11.86004176]
[1767871445550,0.72324746,134.53,134.49,7.43526271]
[1767871445750,0.72324746,134.53,134.49,11.86004176]
[1767871447850,0.72324746,134.53,134.49,4.42477905]
[1767871448469,0.69197871,134.52,134.48,25.47057842]
[1767871449462,0.69197871,134.52,134.48,25.44057842]
[1767871450677,0.69197871,134.49,134.45,0.03]
[1767871450975,0.69197871,134.49,134.47,7.43650885]
[1767871451158,0.69197871,134.5,134.46,11.89171118]
[1767871451359,0.69197871,134.5,134.46,4.42477905]
[1767871451670,0.69197871,134.5,134.45,11.89230596]
[1767871452876,0.69197871,134.49,134.45,11.86230596]
[1767871453077,0.69197871,134.49,134.44,25.47294948]
[1767871453258,0.69197871,134.49,134.45,11.8623689]
[1767871455180,0.69197871,134.48,134.45,7.43758985]
[1767871455561,0.69197871,134.48,134.45,11.8623689]
[1767871456973,0.69197871,134.48,134.42,6.6801107]
[1767871456974,0.69197871,134.47,134.42,4.45477905]
[1767871457173,0.69197871,134.47,134.44,4.42477905]
[1767871457674,0.66197868,134.47,134.43,4.45477905]
[1767871457860,0.63197868,134.47,134.43,0.03]
[1767871458181,0.63197868,134.47,134.42,21.01920087]
[1767871458182,4.42477905,134.47,134.42,25.44397992]
[1767871459078,11.86162329,134.47,134.42,25.44397992]
[1767871459760,0.69197871,134.46,134.42,25.44397992]
[1767871459953,7.43717815,134.46,134.42,18.00477905]
[1767871460173,11.86160594,134.47,134.42,25.44407367]
[1767871460656,11.86160594,134.47,134.42,11.86407367]
[1767871461084,7.43682689,134.47,134.42,11.86407367]
[1767871461393,11.86160594,134.47,134.42,11.86407367]
[1767871461689,18.58934883,134.49,134.44,4.42477905]
[1767871461690,7.43571417,134.49,134.44,4.42477905]
[1767871461855,0.69197871,134.47,134.41,7.43968871]
[1767871462173,0.69197871,134.46,134.42,4.42477905]
[1767871463280,0.69197871,134.46,134.42,5.11404891]
[1767871466371,8.1291399,134.46,134.42,5.11404891]
[1767871466569,0.69197871,134.45,134.42,5.11404891]
[1767871466785,0.66197871,134.45,134.42,5.11404891]
[1767871472608,0.65403786,134.44,134.4,0.86645771]
[1767871472888,4.963761,134.49,134.43,3.50270951]
[1767871472889,2.8362518,134.48,134.43,3.50270951]
[1767871473390,26.30954349,134.49,134.43,3.50270951]
[1767871473590,10.556072,134.49,134.44,2.8362518]
[1767871473896,10.556072,134.49,134.45,2.8362518]
[1767871474385,10.556072,134.49,134.44,2.8362518]
[1767871474786,0.65403786,134.48,134.44,2.8362518]
[1767871475187,0.65403786,134.47,134.44,2.8362518]
[1767871475587,0.65403786,134.47,134.43,8.10514212]
[1767871475782,0.65403786,134.47,134.44,2.8362518]
[1767871478380,8.09069032,134.47,134.44,2.8362518]
[1767871478699,8.09069032,134.47,134.43,3.50270951]
[1767871481480,8.09069032,134.47,134.43,10.94148829]
[1767871482296,0.65403786,134.47,134.43,10.94148829]
[1767871482497,7.43531868,134.5,134.47,0.66645771]
[1767871482806,103.65403786,134.51,134.47,3.50270951]
[1767871482807,0.65403786,134.51,134.47,3.50270951]
[1767871483205,8.08847045,134.51,134.48,3.50270951]
[1767871483585,0.65403786,134.51,134.48,3.50270951]
[1767871483980,8.08853273,134.51,134.48,0.66645771]
[1767871484689,8.08853273,134.51,134.47,0.66645771]
[1767871484892,8.08853273,134.51,134.47,3.50270951]
[1767871485101,0.65403786,134.51,134.47,10.93922189]
[1767871489185,0.65403786,134.51,134.48,2.8362518]
[1767871492795,7.43403785,134.52,134.49,0.66645771]
[1767871492796,8.08807571,134.52,134.49,0.66645771]
[1767871493308,0.65403786,134.51,134.48,3.50270951]
[1767871497312,0.65403786,134.51,134.48,2.8362518]
[1767871497524,0.65403786,134.5,134.47,2.8362518]
[1767871497820,0.65403786,134.5,134.47,3.50270951]
[1767871498810,0.65403786,134.5,134.47,10.93927344]
[1767871499120,0.65403786,134.5,134.48,2.8362518]
[1767871499503,0.62403786,134.5,134.48,2.8362518]
[1767871500729,0.62403786,134.5,134.47,0.66645771]
[1767871501023,0.62403786,134.5,134.47,3.50270951]
[1767871501523,0.62403786,134.5,134.47,10.93928265]
[1767871501816,8.08757652,134.53,134.49,3.50270951]
[1767871502011,0.65403786,134.53,134.5,0.66645771]
[1767871502323,0.65403786,134.53,134.5,3.50270951]
[1767871502520,0.65403786,134.53,134.5,10.93761726]
[1767871502821,0.71022969,134.55,134.52,3.52376575]
[1767871503317,0.71022969,134.54,134.52,2.8362518]
[1767871503534,0.71022969,134.54,134.51,3.52376575]
[1767871503895,0.71022969,134.54,134.51,2.8362518]
[1767871504405,0.67268464,134.53,134.5,2.8362518]
[1767871504608,0.67268464,134.52,134.49,13.58]
[1767871504918,0.67268464,134.52,134.46,0.70362126]
[1767871505143,0.67268464,134.5,134.47,3.53987306]
[1767871505324,14.25268464,134.51,134.47,0.70362126]
[1767871505505,14.25268464,134.51,134.48,2.8362518]
[1767871506108,14.25268464,134.51,134.48,3.53987306]
[1767871506426,0.67268464,134.51,134.48,3.53987306]
[1767871509909,21.01392723,134.52,134.51,1.32731536]
[1767871510116,21.01392723,134.52,134.48,0.70362126]
[1767871510323,23.85017903,134.52,134.48,0.70362126]
[1767871510521,2.8362518,134.51,134.47,0.70362126]
[1767871511792,3.50893644,134.51,134.47,0.70362126]
[1767871512213,10.94373674,134.51,134.47,0.70362126]
[1767871513317,8.10748494,134.51,134.47,0.70362126]
[1767871513702,21.6867587,134.52,134.48,0.70362126]
[1767871513907,0.67268464,134.51,134.48,0.70362126]
[1767871519927,0.67268464,134.51,134.47,10.9764617]
[1767871520602,0.67268464,134.51,134.48,8.13947609]
[1767871521711,0.67268464,134.53,134.5,3.53987306]
[1767871522022,0.67268464,134.53,134.5,2.8362518]
[1767871522413,0.67268464,134.53,134.5,0.70362126]
[1767871522825,14.25268464,134.54,134.51,0.70362126]
[1767871524824,21.68550234,134.54,134.51,0.70362126]
[1767871525147,0.67268464,134.53,134.5,0.70362126]
[1767871525521,14.25268464,134.54,134.51,0.70362126]
[1767871525721,21.68542061,134.54,134.51,0.70362126]
[1767871525920,0.67268464,134.52,134.47,0.70362126]
[1767871526232,0.67268464,134.51,134.47,0.70362126]
[1767871526413,3.50893644,134.5,134.47,0.70362126]
[1767871526607,0.67268464,134.5,134.47,0.70362126]
[1767871528334,13.58,134.51,134.49,0.70362126]
[1767871529827,7.43363981,134.53,134.49,0.70362126]
[1767871529828,21.68632445,134.53,134.49,0.70362126]
[1767871531332,21.68632445,134.53,134.49,3.53987306]
[1767871532015,0.67268464,134.54,134.51,0.70362126]
[1767871535118,0.099,134.51,134.44,0.71951979]
[1767871535341,18.574107,134.5,134.46,0.71951979]
[1767871536939,26.00921844,134.5,134.46,0.71951979]
[1767871539550,14.14794779,134.5,134.47,0.71951979]
[1767871540849,13.58,134.5,134.47,0.71951979]
[1767871542047,13.679,134.5,134.47,0.71951979]
[1767871542548,13.679,134.5,134.46,12.58277103]
[1767871542727,0.56794779,134.49,134.45,5.145679]
[1767871542927,0.53794779,134.49,134.45,5.145679]
[1767871543848,0.53794779,134.49,134.42,26.32211513]
[1767871544027,4.42615921,134.45,134.42,0.71951979]
[1767871544527,18.00615921,134.46,134.42,0.71951979]
[1767871544937,18.54884385,134.46,134.42,0.71951979]
[1767871549748,14.12268464,134.46,134.42,0.71951979]
[1767871550055,14.12268464,134.46,134.42,12.58502772]
[1767871550842,13.58,134.46,134.44,0.71951979]
[1767871551048,12.40507805,134.48,134.44,0.71951979]
[1767871551240,13.58,134.47,134.44,0.71951979]
[1767871551435,0.54268464,134.5,134.46,0.71951979]
[1767871551649,13.58,134.49,134.46,0.65951982]
[1767871553546,13.58,134.49,134.46,5.08567903]
[1767871555082,13.58,134.49,134.46,12.52272456]